{"text_format":"3","workbook":"xlsx","n_sheets":3,"sheets":["Günlük Program","Olay Planlayıcı","Zaman Aralıkları"],"not_rendered":{"images":1,"defined_names":21},"read":"whole","date_system":"1900"}

{"sheet":"Günlük Program","index":0,"n_rows":75,"n_cols":13,"rows_kept":75,"merged":[[1,1,5,2],[2,12,4,12],[3,7,4,7],[5,12,7,12],[6,1,8,2],[8,12,10,12],[9,7,10,7],[10,1,10,2],[11,12,13,12],[14,12,16,12],[15,7,16,7],[17,12,19,12],[18,1,18,2],[20,12,22,12],[21,7,22,7],[23,12,25,12],[25,1,25,2],[26,7,27,7],[26,12,28,12],[29,12,31,12],[31,7,32,7],[32,12,34,12]]}
[null,"Günlük Program"]
[null,{"$f":"IFERROR(DAY(DateVal),\"\")","v":""},null,null,"Zaman",{"$f":"IFERROR(UPPER(TEXT(DATE(ReportYear,AySayısı,ReportDay),\"g aaaa yyyy\")),\"\")","v":" MONDAY 2019"},null,"HAFTAYA GENEL BAKIŞ",{"$nulls":3},"NOTLAR / YAPILACAKLAR LİSTESİ"]
[{"$nulls":4},{"$f":"'Zaman Aralıkları'!E3","v":"06:00:00"},{"$f":"IFERROR(INDEX(EtkinlikZamanlayıcı[],MATCH(DATEVALUE(DateVal)&GünlükProgram[[#This Row],[Zaman]],LookUpDateAndTime,0),3),\"\")","v":""},null,{"$f":"IFERROR(TEXT(DATEVALUE(DateVal)+1,\"gggg\"),\"\")","v":""},{"$f":"IFERROR(INDEX(EtkinlikZamanlayıcı[],MATCH($H$6&\"|\"&ROW(A1),EtkinlikZamanlayıcı[BENZERSİZ DEĞER (HESAPLANAN)],0),2),\"\")","v":""},{"$f":"IFERROR(INDEX(EtkinlikZamanlayıcı[],MATCH($H$6&\"|\"&ROW(A1),EtkinlikZamanlayıcı[BENZERSİZ DEĞER (HESAPLANAN)],0),3),\"\")","v":""},null,null,"Kuru temizlemeciye uğra"]
[{"$nulls":4},{"$f":"'Zaman Aralıkları'!E4","v":"06:15:00"},{"$f":"IFERROR(INDEX(EtkinlikZamanlayıcı[],MATCH(DATEVALUE(DateVal)&GünlükProgram[[#This Row],[Zaman]],LookUpDateAndTime,0),3),\"\")","v":""},null,{"$f":"IFERROR(TEXT(DATEVALUE(DateVal)+1,\"g\"),\"\")","v":""},{"$f":"IFERROR(INDEX(EtkinlikZamanlayıcı[],MATCH($H$6&\"|\"&ROW(A2),EtkinlikZamanlayıcı[BENZERSİZ DEĞER (HESAPLANAN)],0),2),\"\")","v":""},{"$f":"IFERROR(INDEX(EtkinlikZamanlayıcı[],MATCH($H$6&\"|\"&ROW(A2),EtkinlikZamanlayıcı[BENZERSİZ DEĞER (HESAPLANAN)],0),3),\"\")","v":""}]
[{"$nulls":4},{"$f":"'Zaman Aralıkları'!E5","v":"06:30:00"},{"$f":"IFERROR(INDEX(EtkinlikZamanlayıcı[],MATCH(DATEVALUE(DateVal)&GünlükProgram[[#This Row],[Zaman]],LookUpDateAndTime,0),3),\"\")","v":""},null,null,{"$f":"IFERROR(INDEX(EtkinlikZamanlayıcı[],MATCH($H$6&\"|\"&ROW(A3),EtkinlikZamanlayıcı[BENZERSİZ DEĞER (HESAPLANAN)],0),2),\"\")","v":""},{"$f":"IFERROR(INDEX(EtkinlikZamanlayıcı[],MATCH($H$6&\"|\"&ROW(A3),EtkinlikZamanlayıcı[BENZERSİZ DEĞER (HESAPLANAN)],0),3),\"\")","v":""}]
[{"$nulls":4},{"$f":"'Zaman Aralıkları'!E6","v":"06:45:00"},{"$f":"IFERROR(INDEX(EtkinlikZamanlayıcı[],MATCH(DATEVALUE(DateVal)&GünlükProgram[[#This Row],[Zaman]],LookUpDateAndTime,0),3),\"\")","v":""},null,{"$f":"IFERROR(DateVal+1,\"\")","v":""},{"$f":"IFERROR(INDEX(EtkinlikZamanlayıcı[],MATCH($H$6&\"|\"&ROW(A4),EtkinlikZamanlayıcı[BENZERSİZ DEĞER (HESAPLANAN)],0),2),\"\")","v":""},{"$f":"IFERROR(INDEX(EtkinlikZamanlayıcı[],MATCH($H$6&\"|\"&ROW(A4),EtkinlikZamanlayıcı[BENZERSİZ DEĞER (HESAPLANAN)],0),3),\"\")","v":""},null,null,"Kablolu TV şirketini ara"]
[null,{"$f":"IFERROR(TEXT(DateVal,\"gggg\"),\"\")","v":" MONDAY 2019"},null,null,{"$f":"'Zaman Aralıkları'!E7","v":"07:00:00"},{"$f":"IFERROR(INDEX(EtkinlikZamanlayıcı[],MATCH(DATEVALUE(DateVal)&GünlükProgram[[#This Row],[Zaman]],LookUpDateAndTime,0),3),\"\")","v":""},null,null,{"$f":"IFERROR(INDEX(EtkinlikZamanlayıcı[],MATCH($H$6&\"|\"&ROW(A5),EtkinlikZamanlayıcı[BENZERSİZ DEĞER (HESAPLANAN)],0),2),\"\")","v":""},{"$f":"IFERROR(INDEX(EtkinlikZamanlayıcı[],MATCH($H$6&\"|\"&ROW(A5),EtkinlikZamanlayıcı[BENZERSİZ DEĞER (HESAPLANAN)],0),3),\"\")","v":""}]
[{"$nulls":4},{"$f":"'Zaman Aralıkları'!E8","v":"07:15:00"},{"$f":"IFERROR(INDEX(EtkinlikZamanlayıcı[],MATCH(DATEVALUE(DateVal)&GünlükProgram[[#This Row],[Zaman]],LookUpDateAndTime,0),3),\"\")","v":""},null,null,{"$f":"IFERROR(INDEX(EtkinlikZamanlayıcı[],MATCH($H$6&\"|\"&ROW(A6),EtkinlikZamanlayıcı[BENZERSİZ DEĞER (HESAPLANAN)],0),2),\"\")","v":""},{"$f":"IFERROR(INDEX(EtkinlikZamanlayıcı[],MATCH($H$6&\"|\"&ROW(A6),EtkinlikZamanlayıcı[BENZERSİZ DEĞER (HESAPLANAN)],0),3),\"\")","v":""}]
[{"$nulls":4},{"$f":"'Zaman Aralıkları'!E9","v":"07:30:00"},{"$f":"IFERROR(INDEX(EtkinlikZamanlayıcı[],MATCH(DATEVALUE(DateVal)&GünlükProgram[[#This Row],[Zaman]],LookUpDateAndTime,0),3),\"\")","v":""},null,{"$f":"IFERROR(TEXT(DATEVALUE(DateVal)+2,\"gggg\"),\"\")","v":""},{"$f":"IFERROR(INDEX(EtkinlikZamanlayıcı[],MATCH($H$12&\"|\"&ROW(A1),EtkinlikZamanlayıcı[BENZERSİZ DEĞER (HESAPLANAN)],0),2),\"\")","v":""},{"$f":"IFERROR(INDEX(EtkinlikZamanlayıcı[],MATCH($H$12&\"|\"&ROW(A1),EtkinlikZamanlayıcı[BENZERSİZ DEĞER (HESAPLANAN)],0),3),\"\")","v":""}]
[{"$nulls":4},{"$f":"'Zaman Aralıkları'!E10","v":"07:45:00"},{"$f":"IFERROR(INDEX(EtkinlikZamanlayıcı[],MATCH(DATEVALUE(DateVal)&GünlükProgram[[#This Row],[Zaman]],LookUpDateAndTime,0),3),\"\")","v":""},null,{"$f":"IFERROR(TEXT(DATEVALUE(DateVal)+2,\"g\"),\"\")","v":""},{"$f":"IFERROR(INDEX(EtkinlikZamanlayıcı[],MATCH($H$12&\"|\"&ROW(A2),EtkinlikZamanlayıcı[BENZERSİZ DEĞER (HESAPLANAN)],0),2),\"\")","v":""},{"$f":"IFERROR(INDEX(EtkinlikZamanlayıcı[],MATCH($H$12&\"|\"&ROW(A2),EtkinlikZamanlayıcı[BENZERSİZ DEĞER (HESAPLANAN)],0),3),\"\")","v":""}]
[null,"PROGRAMI GÖRÜNTÜLE",null,null,{"$f":"'Zaman Aralıkları'!E11","v":"08:00:00"},{"$f":"IFERROR(INDEX(EtkinlikZamanlayıcı[],MATCH(DATEVALUE(DateVal)&GünlükProgram[[#This Row],[Zaman]],LookUpDateAndTime,0),3),\"\")","v":""},null,null,{"$f":"IFERROR(INDEX(EtkinlikZamanlayıcı[],MATCH($H$12&\"|\"&ROW(A3),EtkinlikZamanlayıcı[BENZERSİZ DEĞER (HESAPLANAN)],0),2),\"\")","v":""},{"$f":"IFERROR(INDEX(EtkinlikZamanlayıcı[],MATCH($H$12&\"|\"&ROW(A3),EtkinlikZamanlayıcı[BENZERSİZ DEĞER (HESAPLANAN)],0),3),\"\")","v":""}]
[{"$nulls":4},{"$f":"'Zaman Aralıkları'!E12","v":"08:15:00"},{"$f":"IFERROR(INDEX(EtkinlikZamanlayıcı[],MATCH(DATEVALUE(DateVal)&GünlükProgram[[#This Row],[Zaman]],LookUpDateAndTime,0),3),\"\")","v":""},null,{"$f":"IFERROR(DateVal+2,\"\")","v":""},{"$f":"IFERROR(INDEX(EtkinlikZamanlayıcı[],MATCH($H$12&\"|\"&ROW(A4),EtkinlikZamanlayıcı[BENZERSİZ DEĞER (HESAPLANAN)],0),2),\"\")","v":""},{"$f":"IFERROR(INDEX(EtkinlikZamanlayıcı[],MATCH($H$12&\"|\"&ROW(A4),EtkinlikZamanlayıcı[BENZERSİZ DEĞER (HESAPLANAN)],0),3),\"\")","v":""}]
[null,"Yıl",null,null,{"$f":"'Zaman Aralıkları'!E13","v":"08:30:00"},{"$f":"IFERROR(INDEX(EtkinlikZamanlayıcı[],MATCH(DATEVALUE(DateVal)&GünlükProgram[[#This Row],[Zaman]],LookUpDateAndTime,0),3),\"\")","v":""},null,null,{"$f":"IFERROR(INDEX(EtkinlikZamanlayıcı[],MATCH($H$12&\"|\"&ROW(A5),EtkinlikZamanlayıcı[BENZERSİZ DEĞER (HESAPLANAN)],0),2),\"\")","v":""},{"$f":"IFERROR(INDEX(EtkinlikZamanlayıcı[],MATCH($H$12&\"|\"&ROW(A5),EtkinlikZamanlayıcı[BENZERSİZ DEĞER (HESAPLANAN)],0),3),\"\")","v":""}]
[{"$nulls":4},{"$f":"'Zaman Aralıkları'!E14","v":"08:45:00"},{"$f":"IFERROR(INDEX(EtkinlikZamanlayıcı[],MATCH(DATEVALUE(DateVal)&GünlükProgram[[#This Row],[Zaman]],LookUpDateAndTime,0),3),\"\")","v":""},null,null,{"$f":"IFERROR(INDEX(EtkinlikZamanlayıcı[],MATCH($H$12&\"|\"&ROW(A6),EtkinlikZamanlayıcı[BENZERSİZ DEĞER (HESAPLANAN)],0),2),\"\")","v":""},{"$f":"IFERROR(INDEX(EtkinlikZamanlayıcı[],MATCH($H$12&\"|\"&ROW(A6),EtkinlikZamanlayıcı[BENZERSİZ DEĞER (HESAPLANAN)],0),3),\"\")","v":""}]
[null,"Ay",null,null,{"$f":"'Zaman Aralıkları'!E15","v":"09:00:00"},{"$f":"IFERROR(INDEX(EtkinlikZamanlayıcı[],MATCH(DATEVALUE(DateVal)&GünlükProgram[[#This Row],[Zaman]],LookUpDateAndTime,0),3),\"\")","v":""},null,{"$f":"IFERROR(TEXT(DATEVALUE(DateVal)+3,\"gggg\"),\"\")","v":""},{"$f":"IFERROR(INDEX(EtkinlikZamanlayıcı[],MATCH($H$18&\"|\"&ROW(A1),EtkinlikZamanlayıcı[BENZERSİZ DEĞER (HESAPLANAN)],0),2),\"\")","v":""},{"$f":"IFERROR(INDEX(EtkinlikZamanlayıcı[],MATCH($H$18&\"|\"&ROW(A1),EtkinlikZamanlayıcı[BENZERSİZ DEĞER (HESAPLANAN)],0),3),\"\")","v":""}]
[{"$nulls":4},{"$f":"'Zaman Aralıkları'!E16","v":"09:15:00"},{"$f":"IFERROR(INDEX(EtkinlikZamanlayıcı[],MATCH(DATEVALUE(DateVal)&GünlükProgram[[#This Row],[Zaman]],LookUpDateAndTime,0),3),\"\")","v":""},null,{"$f":"IFERROR(TEXT(DATEVALUE(DateVal)+3,\"g\"),\"\")","v":""},{"$f":"IFERROR(INDEX(EtkinlikZamanlayıcı[],MATCH($H$18&\"|\"&ROW(A2),EtkinlikZamanlayıcı[BENZERSİZ DEĞER (HESAPLANAN)],0),2),\"\")","v":""},{"$f":"IFERROR(INDEX(EtkinlikZamanlayıcı[],MATCH($H$18&\"|\"&ROW(A2),EtkinlikZamanlayıcı[BENZERSİZ DEĞER (HESAPLANAN)],0),3),\"\")","v":""}]
[null,"Gün",null,null,{"$f":"'Zaman Aralıkları'!E17","v":"09:30:00"},{"$f":"IFERROR(INDEX(EtkinlikZamanlayıcı[],MATCH(DATEVALUE(DateVal)&GünlükProgram[[#This Row],[Zaman]],LookUpDateAndTime,0),3),\"\")","v":""},null,null,{"$f":"IFERROR(INDEX(EtkinlikZamanlayıcı[],MATCH($H$18&\"|\"&ROW(A3),EtkinlikZamanlayıcı[BENZERSİZ DEĞER (HESAPLANAN)],0),2),\"\")","v":""},{"$f":"IFERROR(INDEX(EtkinlikZamanlayıcı[],MATCH($H$18&\"|\"&ROW(A3),EtkinlikZamanlayıcı[BENZERSİZ DEĞER (HESAPLANAN)],0),3),\"\")","v":""}]
[{"$nulls":4},{"$f":"'Zaman Aralıkları'!E18","v":"09:45:00"},{"$f":"IFERROR(INDEX(EtkinlikZamanlayıcı[],MATCH(DATEVALUE(DateVal)&GünlükProgram[[#This Row],[Zaman]],LookUpDateAndTime,0),3),\"\")","v":""},null,{"$f":"IFERROR(DateVal+3,\"\")","v":""},{"$f":"IFERROR(INDEX(EtkinlikZamanlayıcı[],MATCH($H$18&\"|\"&ROW(A4),EtkinlikZamanlayıcı[BENZERSİZ DEĞER (HESAPLANAN)],0),2),\"\")","v":""},{"$f":"IFERROR(INDEX(EtkinlikZamanlayıcı[],MATCH($H$18&\"|\"&ROW(A4),EtkinlikZamanlayıcı[BENZERSİZ DEĞER (HESAPLANAN)],0),3),\"\")","v":""}]
[null,"PROGRAMI DÜZENLE",null,null,{"$f":"'Zaman Aralıkları'!E19","v":"10:00:00"},{"$f":"IFERROR(INDEX(EtkinlikZamanlayıcı[],MATCH(DATEVALUE(DateVal)&GünlükProgram[[#This Row],[Zaman]],LookUpDateAndTime,0),3),\"\")","v":""},null,null,{"$f":"IFERROR(INDEX(EtkinlikZamanlayıcı[],MATCH($H$18&\"|\"&ROW(A5),EtkinlikZamanlayıcı[BENZERSİZ DEĞER (HESAPLANAN)],0),2),\"\")","v":""},{"$f":"IFERROR(INDEX(EtkinlikZamanlayıcı[],MATCH($H$18&\"|\"&ROW(A5),EtkinlikZamanlayıcı[BENZERSİZ DEĞER (HESAPLANAN)],0),3),\"\")","v":""}]
[{"$nulls":4},{"$f":"'Zaman Aralıkları'!E20","v":"10:15:00"},{"$f":"IFERROR(INDEX(EtkinlikZamanlayıcı[],MATCH(DATEVALUE(DateVal)&GünlükProgram[[#This Row],[Zaman]],LookUpDateAndTime,0),3),\"\")","v":""},null,null,{"$f":"IFERROR(INDEX(EtkinlikZamanlayıcı[],MATCH($H$18&\"|\"&ROW(A6),EtkinlikZamanlayıcı[BENZERSİZ DEĞER (HESAPLANAN)],0),2),\"\")","v":""},{"$f":"IFERROR(INDEX(EtkinlikZamanlayıcı[],MATCH($H$18&\"|\"&ROW(A6),EtkinlikZamanlayıcı[BENZERSİZ DEĞER (HESAPLANAN)],0),3),\"\")","v":""}]
[null,"Zaman aralıklarını düzenlemek için seçin",null,null,{"$f":"'Zaman Aralıkları'!E21","v":"10:30:00"},{"$f":"IFERROR(INDEX(EtkinlikZamanlayıcı[],MATCH(DATEVALUE(DateVal)&GünlükProgram[[#This Row],[Zaman]],LookUpDateAndTime,0),3),\"\")","v":""},null,{"$f":"IFERROR(TEXT(DATEVALUE(DateVal)+4,\"gggg\"),\"\")","v":""},{"$f":"IFERROR(INDEX(EtkinlikZamanlayıcı[],MATCH($H$24&\"|\"&ROW(A1),EtkinlikZamanlayıcı[BENZERSİZ DEĞER (HESAPLANAN)],0),2),\"\")","v":""},{"$f":"IFERROR(INDEX(EtkinlikZamanlayıcı[],MATCH($H$24&\"|\"&ROW(A1),EtkinlikZamanlayıcı[BENZERSİZ DEĞER (HESAPLANAN)],0),3),\"\")","v":""}]
[{"$nulls":4},{"$f":"'Zaman Aralıkları'!E22","v":"10:45:00"},{"$f":"IFERROR(INDEX(EtkinlikZamanlayıcı[],MATCH(DATEVALUE(DateVal)&GünlükProgram[[#This Row],[Zaman]],LookUpDateAndTime,0),3),\"\")","v":""},null,{"$f":"IFERROR(TEXT(DATEVALUE(DateVal)+4,\"g\"),\"\")","v":""},{"$f":"IFERROR(INDEX(EtkinlikZamanlayıcı[],MATCH($H$24&\"|\"&ROW(A2),EtkinlikZamanlayıcı[BENZERSİZ DEĞER (HESAPLANAN)],0),2),\"\")","v":""},{"$f":"IFERROR(INDEX(EtkinlikZamanlayıcı[],MATCH($H$24&\"|\"&ROW(A2),EtkinlikZamanlayıcı[BENZERSİZ DEĞER (HESAPLANAN)],0),3),\"\")","v":""}]
[null,"Yeni bir etkinlik eklemek için seçin",null,null,{"$f":"'Zaman Aralıkları'!E23","v":"11:00:00"},{"$f":"IFERROR(INDEX(EtkinlikZamanlayıcı[],MATCH(DATEVALUE(DateVal)&GünlükProgram[[#This Row],[Zaman]],LookUpDateAndTime,0),3),\"\")","v":""},null,null,{"$f":"IFERROR(INDEX(EtkinlikZamanlayıcı[],MATCH($H$24&\"|\"&ROW(A3),EtkinlikZamanlayıcı[BENZERSİZ DEĞER (HESAPLANAN)],0),2),\"\")","v":""},{"$f":"IFERROR(INDEX(EtkinlikZamanlayıcı[],MATCH($H$24&\"|\"&ROW(A3),EtkinlikZamanlayıcı[BENZERSİZ DEĞER (HESAPLANAN)],0),3),\"\")","v":""}]
[{"$nulls":4},{"$f":"'Zaman Aralıkları'!E24","v":"11:15:00"},{"$f":"IFERROR(INDEX(EtkinlikZamanlayıcı[],MATCH(DATEVALUE(DateVal)&GünlükProgram[[#This Row],[Zaman]],LookUpDateAndTime,0),3),\"\")","v":""},null,{"$f":"IFERROR(DateVal+4,\"\")","v":""},{"$f":"IFERROR(INDEX(EtkinlikZamanlayıcı[],MATCH($H$24&\"|\"&ROW(A4),EtkinlikZamanlayıcı[BENZERSİZ DEĞER (HESAPLANAN)],0),2),\"\")","v":""},{"$f":"IFERROR(INDEX(EtkinlikZamanlayıcı[],MATCH($H$24&\"|\"&ROW(A4),EtkinlikZamanlayıcı[BENZERSİZ DEĞER (HESAPLANAN)],0),3),\"\")","v":""}]
[null,"PROGRAMDA VURGULA:",null,null,{"$f":"'Zaman Aralıkları'!E25","v":"11:30:00"},{"$f":"IFERROR(INDEX(EtkinlikZamanlayıcı[],MATCH(DATEVALUE(DateVal)&GünlükProgram[[#This Row],[Zaman]],LookUpDateAndTime,0),3),\"\")","v":""},null,null,{"$f":"IFERROR(INDEX(EtkinlikZamanlayıcı[],MATCH($H$24&\"|\"&ROW(A5),EtkinlikZamanlayıcı[BENZERSİZ DEĞER (HESAPLANAN)],0),2),\"\")","v":""},{"$f":"IFERROR(INDEX(EtkinlikZamanlayıcı[],MATCH($H$24&\"|\"&ROW(A5),EtkinlikZamanlayıcı[BENZERSİZ DEĞER (HESAPLANAN)],0),3),\"\")","v":""}]
[null,"Ara",null,null,{"$f":"'Zaman Aralıkları'!E26","v":"11:45:00"},{"$f":"IFERROR(INDEX(EtkinlikZamanlayıcı[],MATCH(DATEVALUE(DateVal)&GünlükProgram[[#This Row],[Zaman]],LookUpDateAndTime,0),3),\"\")","v":""},null,{"$f":"IFERROR(TEXT(DATEVALUE(DateVal)+5,\"gggg\"),\"\")","v":""},{"$f":"IFERROR(INDEX(EtkinlikZamanlayıcı[],MATCH($H$29&\"|\"&ROW(A1),EtkinlikZamanlayıcı[BENZERSİZ DEĞER (HESAPLANAN)],0),2),\"\")","v":""},{"$f":"IFERROR(INDEX(EtkinlikZamanlayıcı[],MATCH($H$29&\"|\"&ROW(A1),EtkinlikZamanlayıcı[BENZERSİZ DEĞER (HESAPLANAN)],0),3),\"\")","v":""}]
[{"$nulls":4},{"$f":"'Zaman Aralıkları'!E27","v":"12:00:00"},{"$f":"IFERROR(INDEX(EtkinlikZamanlayıcı[],MATCH(DATEVALUE(DateVal)&GünlükProgram[[#This Row],[Zaman]],LookUpDateAndTime,0),3),\"\")","v":""},null,{"$f":"IFERROR(TEXT(DATEVALUE(DateVal)+5,\"g\"),\"\")","v":""},{"$f":"IFERROR(INDEX(EtkinlikZamanlayıcı[],MATCH($H$29&\"|\"&ROW(A2),EtkinlikZamanlayıcı[BENZERSİZ DEĞER (HESAPLANAN)],0),2),\"\")","v":""},{"$f":"IFERROR(INDEX(EtkinlikZamanlayıcı[],MATCH($H$29&\"|\"&ROW(A2),EtkinlikZamanlayıcı[BENZERSİZ DEĞER (HESAPLANAN)],0),3),\"\")","v":""}]
[{"$nulls":4},{"$f":"'Zaman Aralıkları'!E28","v":"12:15:00"},{"$f":"IFERROR(INDEX(EtkinlikZamanlayıcı[],MATCH(DATEVALUE(DateVal)&GünlükProgram[[#This Row],[Zaman]],LookUpDateAndTime,0),3),\"\")","v":""},null,null,{"$f":"IFERROR(INDEX(EtkinlikZamanlayıcı[],MATCH($H$29&\"|\"&ROW(A3),EtkinlikZamanlayıcı[BENZERSİZ DEĞER (HESAPLANAN)],0),2),\"\")","v":""},{"$f":"IFERROR(INDEX(EtkinlikZamanlayıcı[],MATCH($H$29&\"|\"&ROW(A3),EtkinlikZamanlayıcı[BENZERSİZ DEĞER (HESAPLANAN)],0),3),\"\")","v":""}]
[{"$nulls":4},{"$f":"'Zaman Aralıkları'!E29","v":"12:30:00"},{"$f":"IFERROR(INDEX(EtkinlikZamanlayıcı[],MATCH(DATEVALUE(DateVal)&GünlükProgram[[#This Row],[Zaman]],LookUpDateAndTime,0),3),\"\")","v":""},null,{"$f":"IFERROR(DateVal+5,\"\")","v":""},{"$f":"IFERROR(INDEX(EtkinlikZamanlayıcı[],MATCH($H$29&\"|\"&ROW(A4),EtkinlikZamanlayıcı[BENZERSİZ DEĞER (HESAPLANAN)],0),2),\"\")","v":""},{"$f":"IFERROR(INDEX(EtkinlikZamanlayıcı[],MATCH($H$29&\"|\"&ROW(A4),EtkinlikZamanlayıcı[BENZERSİZ DEĞER (HESAPLANAN)],0),3),\"\")","v":""}]
[{"$nulls":4},{"$f":"'Zaman Aralıkları'!E30","v":"12:45:00"},{"$f":"IFERROR(INDEX(EtkinlikZamanlayıcı[],MATCH(DATEVALUE(DateVal)&GünlükProgram[[#This Row],[Zaman]],LookUpDateAndTime,0),3),\"\")","v":""},null,null,{"$f":"IFERROR(INDEX(EtkinlikZamanlayıcı[],MATCH($H$29&\"|\"&ROW(A5),EtkinlikZamanlayıcı[BENZERSİZ DEĞER (HESAPLANAN)],0),2),\"\")","v":""},{"$f":"IFERROR(INDEX(EtkinlikZamanlayıcı[],MATCH($H$29&\"|\"&ROW(A5),EtkinlikZamanlayıcı[BENZERSİZ DEĞER (HESAPLANAN)],0),3),\"\")","v":""}]
[{"$nulls":4},{"$f":"'Zaman Aralıkları'!E31","v":"13:00:00"},{"$f":"IFERROR(INDEX(EtkinlikZamanlayıcı[],MATCH(DATEVALUE(DateVal)&GünlükProgram[[#This Row],[Zaman]],LookUpDateAndTime,0),3),\"\")","v":""},null,{"$f":"IFERROR(TEXT(DATEVALUE(DateVal)+6,\"gggg\"),\"\")","v":""},{"$f":"IFERROR(INDEX(EtkinlikZamanlayıcı[],MATCH($H$34&\"|\"&ROW(A1),EtkinlikZamanlayıcı[BENZERSİZ DEĞER (HESAPLANAN)],0),2),\"\")","v":""},{"$f":"IFERROR(INDEX(EtkinlikZamanlayıcı[],MATCH($H$34&\"|\"&ROW(A1),EtkinlikZamanlayıcı[BENZERSİZ DEĞER (HESAPLANAN)],0),3),\"\")","v":""}]
[{"$nulls":4},{"$f":"'Zaman Aralıkları'!E32","v":"13:15:00"},{"$f":"IFERROR(INDEX(EtkinlikZamanlayıcı[],MATCH(DATEVALUE(DateVal)&GünlükProgram[[#This Row],[Zaman]],LookUpDateAndTime,0),3),\"\")","v":""},null,{"$f":"IFERROR(TEXT(DATEVALUE(DateVal)+6,\"g\"),\"\")","v":""},{"$f":"IFERROR(INDEX(EtkinlikZamanlayıcı[],MATCH($H$34&\"|\"&ROW(A2),EtkinlikZamanlayıcı[BENZERSİZ DEĞER (HESAPLANAN)],0),2),\"\")","v":""},{"$f":"IFERROR(INDEX(EtkinlikZamanlayıcı[],MATCH($H$34&\"|\"&ROW(A2),EtkinlikZamanlayıcı[BENZERSİZ DEĞER (HESAPLANAN)],0),3),\"\")","v":""}]
[{"$nulls":4},{"$f":"'Zaman Aralıkları'!E33","v":"13:30:00"},{"$f":"IFERROR(INDEX(EtkinlikZamanlayıcı[],MATCH(DATEVALUE(DateVal)&GünlükProgram[[#This Row],[Zaman]],LookUpDateAndTime,0),3),\"\")","v":""},null,null,{"$f":"IFERROR(INDEX(EtkinlikZamanlayıcı[],MATCH($H$34&\"|\"&ROW(A3),EtkinlikZamanlayıcı[BENZERSİZ DEĞER (HESAPLANAN)],0),2),\"\")","v":""},{"$f":"IFERROR(INDEX(EtkinlikZamanlayıcı[],MATCH($H$34&\"|\"&ROW(A3),EtkinlikZamanlayıcı[BENZERSİZ DEĞER (HESAPLANAN)],0),3),\"\")","v":""}]
[{"$nulls":4},{"$f":"'Zaman Aralıkları'!E34","v":"13:45:00"},{"$f":"IFERROR(INDEX(EtkinlikZamanlayıcı[],MATCH(DATEVALUE(DateVal)&GünlükProgram[[#This Row],[Zaman]],LookUpDateAndTime,0),3),\"\")","v":""},null,{"$f":"IFERROR(DateVal+6,\"\")","v":""},{"$f":"IFERROR(INDEX(EtkinlikZamanlayıcı[],MATCH($H$34&\"|\"&ROW(A4),EtkinlikZamanlayıcı[BENZERSİZ DEĞER (HESAPLANAN)],0),2),\"\")","v":""},{"$f":"IFERROR(INDEX(EtkinlikZamanlayıcı[],MATCH($H$34&\"|\"&ROW(A4),EtkinlikZamanlayıcı[BENZERSİZ DEĞER (HESAPLANAN)],0),3),\"\")","v":""}]
[{"$nulls":4},{"$f":"'Zaman Aralıkları'!E35","v":"14:00:00"},{"$f":"IFERROR(INDEX(EtkinlikZamanlayıcı[],MATCH(DATEVALUE(DateVal)&GünlükProgram[[#This Row],[Zaman]],LookUpDateAndTime,0),3),\"\")","v":""},null,null,{"$f":"IFERROR(INDEX(EtkinlikZamanlayıcı[],MATCH($H$34&\"|\"&ROW(A5),EtkinlikZamanlayıcı[BENZERSİZ DEĞER (HESAPLANAN)],0),2),\"\")","v":""},{"$f":"IFERROR(INDEX(EtkinlikZamanlayıcı[],MATCH($H$34&\"|\"&ROW(A5),EtkinlikZamanlayıcı[BENZERSİZ DEĞER (HESAPLANAN)],0),3),\"\")","v":""}]
[{"$nulls":4},{"$f":"'Zaman Aralıkları'!E36","v":"14:15:00"},{"$f":"IFERROR(INDEX(EtkinlikZamanlayıcı[],MATCH(DATEVALUE(DateVal)&GünlükProgram[[#This Row],[Zaman]],LookUpDateAndTime,0),3),\"\")","v":""}]
[{"$nulls":4},{"$f":"'Zaman Aralıkları'!E37","v":"14:30:00"},{"$f":"IFERROR(INDEX(EtkinlikZamanlayıcı[],MATCH(DATEVALUE(DateVal)&GünlükProgram[[#This Row],[Zaman]],LookUpDateAndTime,0),3),\"\")","v":""}]
[{"$nulls":4},{"$f":"'Zaman Aralıkları'!E38","v":"14:45:00"},{"$f":"IFERROR(INDEX(EtkinlikZamanlayıcı[],MATCH(DATEVALUE(DateVal)&GünlükProgram[[#This Row],[Zaman]],LookUpDateAndTime,0),3),\"\")","v":""}]
[{"$nulls":4},{"$f":"'Zaman Aralıkları'!E39","v":"15:00:00"},{"$f":"IFERROR(INDEX(EtkinlikZamanlayıcı[],MATCH(DATEVALUE(DateVal)&GünlükProgram[[#This Row],[Zaman]],LookUpDateAndTime,0),3),\"\")","v":""}]
[{"$nulls":4},{"$f":"'Zaman Aralıkları'!E40","v":"15:15:00"},{"$f":"IFERROR(INDEX(EtkinlikZamanlayıcı[],MATCH(DATEVALUE(DateVal)&GünlükProgram[[#This Row],[Zaman]],LookUpDateAndTime,0),3),\"\")","v":""}]
[{"$nulls":4},{"$f":"'Zaman Aralıkları'!E41","v":"15:30:00"},{"$f":"IFERROR(INDEX(EtkinlikZamanlayıcı[],MATCH(DATEVALUE(DateVal)&GünlükProgram[[#This Row],[Zaman]],LookUpDateAndTime,0),3),\"\")","v":""}]
[{"$nulls":4},{"$f":"'Zaman Aralıkları'!E42","v":"15:45:00"},{"$f":"IFERROR(INDEX(EtkinlikZamanlayıcı[],MATCH(DATEVALUE(DateVal)&GünlükProgram[[#This Row],[Zaman]],LookUpDateAndTime,0),3),\"\")","v":""}]
[{"$nulls":4},{"$f":"'Zaman Aralıkları'!E43","v":"16:00:00"},{"$f":"IFERROR(INDEX(EtkinlikZamanlayıcı[],MATCH(DATEVALUE(DateVal)&GünlükProgram[[#This Row],[Zaman]],LookUpDateAndTime,0),3),\"\")","v":""}]
[{"$nulls":4},{"$f":"'Zaman Aralıkları'!E44","v":"16:15:00"},{"$f":"IFERROR(INDEX(EtkinlikZamanlayıcı[],MATCH(DATEVALUE(DateVal)&GünlükProgram[[#This Row],[Zaman]],LookUpDateAndTime,0),3),\"\")","v":""}]
[{"$nulls":4},{"$f":"'Zaman Aralıkları'!E45","v":"16:30:00"},{"$f":"IFERROR(INDEX(EtkinlikZamanlayıcı[],MATCH(DATEVALUE(DateVal)&GünlükProgram[[#This Row],[Zaman]],LookUpDateAndTime,0),3),\"\")","v":""}]
[{"$nulls":4},{"$f":"'Zaman Aralıkları'!E46","v":"16:45:00"},{"$f":"IFERROR(INDEX(EtkinlikZamanlayıcı[],MATCH(DATEVALUE(DateVal)&GünlükProgram[[#This Row],[Zaman]],LookUpDateAndTime,0),3),\"\")","v":""}]
[{"$nulls":4},{"$f":"'Zaman Aralıkları'!E47","v":"17:00:00"},{"$f":"IFERROR(INDEX(EtkinlikZamanlayıcı[],MATCH(DATEVALUE(DateVal)&GünlükProgram[[#This Row],[Zaman]],LookUpDateAndTime,0),3),\"\")","v":""}]
[{"$nulls":4},{"$f":"'Zaman Aralıkları'!E48","v":"17:15:00"},{"$f":"IFERROR(INDEX(EtkinlikZamanlayıcı[],MATCH(DATEVALUE(DateVal)&GünlükProgram[[#This Row],[Zaman]],LookUpDateAndTime,0),3),\"\")","v":""}]
[{"$nulls":4},{"$f":"'Zaman Aralıkları'!E49","v":"17:30:00"},{"$f":"IFERROR(INDEX(EtkinlikZamanlayıcı[],MATCH(DATEVALUE(DateVal)&GünlükProgram[[#This Row],[Zaman]],LookUpDateAndTime,0),3),\"\")","v":""}]
[{"$nulls":4},{"$f":"'Zaman Aralıkları'!E50","v":"17:45:00"},{"$f":"IFERROR(INDEX(EtkinlikZamanlayıcı[],MATCH(DATEVALUE(DateVal)&GünlükProgram[[#This Row],[Zaman]],LookUpDateAndTime,0),3),\"\")","v":""}]
[{"$nulls":4},{"$f":"'Zaman Aralıkları'!E51","v":"18:00:00"},{"$f":"IFERROR(INDEX(EtkinlikZamanlayıcı[],MATCH(DATEVALUE(DateVal)&GünlükProgram[[#This Row],[Zaman]],LookUpDateAndTime,0),3),\"\")","v":""}]
[{"$nulls":4},{"$f":"'Zaman Aralıkları'!E52","v":"18:15:00"},{"$f":"IFERROR(INDEX(EtkinlikZamanlayıcı[],MATCH(DATEVALUE(DateVal)&GünlükProgram[[#This Row],[Zaman]],LookUpDateAndTime,0),3),\"\")","v":""}]
[{"$nulls":4},{"$f":"'Zaman Aralıkları'!E53","v":"18:30:00"},{"$f":"IFERROR(INDEX(EtkinlikZamanlayıcı[],MATCH(DATEVALUE(DateVal)&GünlükProgram[[#This Row],[Zaman]],LookUpDateAndTime,0),3),\"\")","v":""}]
[{"$nulls":4},{"$f":"'Zaman Aralıkları'!E54","v":"18:45:00"},{"$f":"IFERROR(INDEX(EtkinlikZamanlayıcı[],MATCH(DATEVALUE(DateVal)&GünlükProgram[[#This Row],[Zaman]],LookUpDateAndTime,0),3),\"\")","v":""}]
[{"$nulls":4},{"$f":"'Zaman Aralıkları'!E55","v":"19:00:00"},{"$f":"IFERROR(INDEX(EtkinlikZamanlayıcı[],MATCH(DATEVALUE(DateVal)&GünlükProgram[[#This Row],[Zaman]],LookUpDateAndTime,0),3),\"\")","v":""}]
[{"$nulls":4},{"$f":"'Zaman Aralıkları'!E56","v":"19:15:00"},{"$f":"IFERROR(INDEX(EtkinlikZamanlayıcı[],MATCH(DATEVALUE(DateVal)&GünlükProgram[[#This Row],[Zaman]],LookUpDateAndTime,0),3),\"\")","v":""}]
[{"$nulls":4},{"$f":"'Zaman Aralıkları'!E57","v":"19:30:00"},{"$f":"IFERROR(INDEX(EtkinlikZamanlayıcı[],MATCH(DATEVALUE(DateVal)&GünlükProgram[[#This Row],[Zaman]],LookUpDateAndTime,0),3),\"\")","v":""}]
[{"$nulls":4},{"$f":"'Zaman Aralıkları'!E58","v":"19:45:00"},{"$f":"IFERROR(INDEX(EtkinlikZamanlayıcı[],MATCH(DATEVALUE(DateVal)&GünlükProgram[[#This Row],[Zaman]],LookUpDateAndTime,0),3),\"\")","v":""}]
[{"$nulls":4},{"$f":"'Zaman Aralıkları'!E59","v":"20:00:00"},{"$f":"IFERROR(INDEX(EtkinlikZamanlayıcı[],MATCH(DATEVALUE(DateVal)&GünlükProgram[[#This Row],[Zaman]],LookUpDateAndTime,0),3),\"\")","v":""}]
[{"$nulls":4},{"$f":"'Zaman Aralıkları'!E60","v":"20:15:00"},{"$f":"IFERROR(INDEX(EtkinlikZamanlayıcı[],MATCH(DATEVALUE(DateVal)&GünlükProgram[[#This Row],[Zaman]],LookUpDateAndTime,0),3),\"\")","v":""}]
[{"$nulls":4},{"$f":"'Zaman Aralıkları'!E61","v":"20:30:00"},{"$f":"IFERROR(INDEX(EtkinlikZamanlayıcı[],MATCH(DATEVALUE(DateVal)&GünlükProgram[[#This Row],[Zaman]],LookUpDateAndTime,0),3),\"\")","v":""}]
[{"$nulls":4},{"$f":"'Zaman Aralıkları'!E62","v":"20:45:00"},{"$f":"IFERROR(INDEX(EtkinlikZamanlayıcı[],MATCH(DATEVALUE(DateVal)&GünlükProgram[[#This Row],[Zaman]],LookUpDateAndTime,0),3),\"\")","v":""}]
[{"$nulls":4},{"$f":"'Zaman Aralıkları'!E63","v":"21:00:00"},{"$f":"IFERROR(INDEX(EtkinlikZamanlayıcı[],MATCH(DATEVALUE(DateVal)&GünlükProgram[[#This Row],[Zaman]],LookUpDateAndTime,0),3),\"\")","v":""}]
[{"$nulls":4},{"$f":"'Zaman Aralıkları'!E64","v":""},{"$f":"IFERROR(INDEX(EtkinlikZamanlayıcı[],MATCH(DATEVALUE(DateVal)&GünlükProgram[[#This Row],[Zaman]],LookUpDateAndTime,0),3),\"\")","v":""}]
[{"$nulls":4},{"$f":"'Zaman Aralıkları'!E65","v":""},{"$f":"IFERROR(INDEX(EtkinlikZamanlayıcı[],MATCH(DATEVALUE(DateVal)&GünlükProgram[[#This Row],[Zaman]],LookUpDateAndTime,0),3),\"\")","v":""}]
[{"$nulls":4},{"$f":"'Zaman Aralıkları'!E66","v":""},{"$f":"IFERROR(INDEX(EtkinlikZamanlayıcı[],MATCH(DATEVALUE(DateVal)&GünlükProgram[[#This Row],[Zaman]],LookUpDateAndTime,0),3),\"\")","v":""}]
[{"$nulls":4},{"$f":"'Zaman Aralıkları'!E67","v":""},{"$f":"IFERROR(INDEX(EtkinlikZamanlayıcı[],MATCH(DATEVALUE(DateVal)&GünlükProgram[[#This Row],[Zaman]],LookUpDateAndTime,0),3),\"\")","v":""}]
[{"$nulls":4},{"$f":"'Zaman Aralıkları'!E68","v":""},{"$f":"IFERROR(INDEX(EtkinlikZamanlayıcı[],MATCH(DATEVALUE(DateVal)&GünlükProgram[[#This Row],[Zaman]],LookUpDateAndTime,0),3),\"\")","v":""}]
[{"$nulls":4},{"$f":"'Zaman Aralıkları'!E69","v":""},{"$f":"IFERROR(INDEX(EtkinlikZamanlayıcı[],MATCH(DATEVALUE(DateVal)&GünlükProgram[[#This Row],[Zaman]],LookUpDateAndTime,0),3),\"\")","v":""}]
[{"$nulls":4},{"$f":"'Zaman Aralıkları'!E70","v":""},{"$f":"IFERROR(INDEX(EtkinlikZamanlayıcı[],MATCH(DATEVALUE(DateVal)&GünlükProgram[[#This Row],[Zaman]],LookUpDateAndTime,0),3),\"\")","v":""}]
[{"$nulls":4},{"$f":"'Zaman Aralıkları'!E71","v":""},{"$f":"IFERROR(INDEX(EtkinlikZamanlayıcı[],MATCH(DATEVALUE(DateVal)&GünlükProgram[[#This Row],[Zaman]],LookUpDateAndTime,0),3),\"\")","v":""}]
[{"$nulls":4},{"$f":"'Zaman Aralıkları'!E72","v":""},{"$f":"IFERROR(INDEX(EtkinlikZamanlayıcı[],MATCH(DATEVALUE(DateVal)&GünlükProgram[[#This Row],[Zaman]],LookUpDateAndTime,0),3),\"\")","v":""}]
[{"$nulls":4},{"$f":"'Zaman Aralıkları'!E73","v":""},{"$f":"IFERROR(INDEX(EtkinlikZamanlayıcı[],MATCH(DATEVALUE(DateVal)&GünlükProgram[[#This Row],[Zaman]],LookUpDateAndTime,0),3),\"\")","v":""}]
[{"$nulls":4},{"$f":"'Zaman Aralıkları'!E74","v":""},{"$f":"IFERROR(INDEX(EtkinlikZamanlayıcı[],MATCH(DATEVALUE(DateVal)&GünlükProgram[[#This Row],[Zaman]],LookUpDateAndTime,0),3),\"\")","v":""}]
[{"$nulls":4},{"$f":"'Zaman Aralıkları'!E75","v":""},{"$f":"IFERROR(INDEX(EtkinlikZamanlayıcı[],MATCH(DATEVALUE(DateVal)&GünlükProgram[[#This Row],[Zaman]],LookUpDateAndTime,0),3),\"\")","v":""}]

{"sheet":"Olay Planlayıcı","index":1,"n_rows":15,"n_cols":8,"rows_kept":15,"merged":[[1,1,4,2],[5,1,6,2],[7,1,7,2]]}
[null,"Etkinlik Zamanlayıcı"]
[null,{"$f":"DAY(DateVal)","v":{"$error":"#VALUE!"}},null,null,"TARİH","ZAMAN","AÇIKLAMA","BENZERSİZ DEĞER (HESAPLANAN)"]
[{"$nulls":4},{"$f":"TODAY()","v":"2019-09-09"},"06:00:00","Uyan",{"$f":"EtkinlikZamanlayıcı[[#This Row],[TARİH]]&\"|\"&COUNTIF($E$3:E3,E3)","v":"43717|1"}]
[{"$nulls":4},{"$f":"TODAY()","v":"2019-09-09"},"06:30:00","Duş al",{"$f":"EtkinlikZamanlayıcı[[#This Row],[TARİH]]&\"|\"&COUNTIF($E$3:E4,E4)","v":"43717|2"}]
[{"$nulls":4},"2019-09-09","07:30:00","İşe git",{"$f":"EtkinlikZamanlayıcı[[#This Row],[TARİH]]&\"|\"&COUNTIF($E$3:E5,E5)","v":"43717|3"}]
[null,{"$f":"TEXT(DateVal,\"gggg\")","v":" MONDAY 2019"},null,null,"2019-09-09","08:00:00","İşe başla",{"$f":"EtkinlikZamanlayıcı[[#This Row],[TARİH]]&\"|\"&COUNTIF($E$3:E6,E6)","v":"43717|4"}]
[{"$nulls":4},"2019-09-09","10:00:00","Ara",{"$f":"EtkinlikZamanlayıcı[[#This Row],[TARİH]]&\"|\"&COUNTIF($E$3:E7,E7)","v":"43717|5"}]
[null,{"$f":"DateVal","v":" MONDAY 2019"},null,null,"2019-09-09","12:00:00","Öğle yemeği",{"$f":"EtkinlikZamanlayıcı[[#This Row],[TARİH]]&\"|\"&COUNTIF($E$3:E8,E8)","v":"43717|6"}]
[{"$nulls":4},"2019-09-09","13:00:00","İşe dön",{"$f":"EtkinlikZamanlayıcı[[#This Row],[TARİH]]&\"|\"&COUNTIF($E$3:E9,E9)","v":"43717|7"}]
[null,"Zaman aralıklarını düzenlemek için seçin",null,null,"2019-09-09","13:30:00","Şirketi ara",{"$f":"EtkinlikZamanlayıcı[[#This Row],[TARİH]]&\"|\"&COUNTIF($E$3:E10,E10)","v":"43717|8"}]
[{"$nulls":4},"2019-09-09","15:00:00","Ara",{"$f":"EtkinlikZamanlayıcı[[#This Row],[TARİH]]&\"|\"&COUNTIF($E$3:E11,E11)","v":"43717|9"}]
[null,"Günlük Program’ı görüntülemek için seçin",null,null,"2019-09-09","17:00:00","Ev",{"$f":"EtkinlikZamanlayıcı[[#This Row],[TARİH]]&\"|\"&COUNTIF($E$3:E12,E12)","v":"43717|10"}]
[{"$nulls":4},"2019-09-09","18:00:00","Futbol antrenmanı",{"$f":"EtkinlikZamanlayıcı[[#This Row],[TARİH]]&\"|\"&COUNTIF($E$3:E13,E13)","v":"43717|11"}]
[{"$nulls":4},{"$f":"TODAY()+1","v":"2019-09-10"},"06:30:00","Kahvaltı",{"$f":"EtkinlikZamanlayıcı[[#This Row],[TARİH]]&\"|\"&COUNTIF($E$3:E14,E14)","v":"43718|1"}]
[{"$nulls":4},{"$f":"TODAY()+1","v":"2019-09-10"},"07:30:00","İşe git",{"$f":"EtkinlikZamanlayıcı[[#This Row],[TARİH]]&\"|\"&COUNTIF($E$3:E15,E15)","v":"43718|2"}]

{"sheet":"Zaman Aralıkları","index":2,"n_rows":75,"n_cols":5,"rows_kept":75,"merged":[[1,1,1,2],[9,1,9,2]]}
[null,"Zaman Aralıkları"]
[null,"ZAMAN TABLOSUNU DÜZENLE",null,null,"Saat"]
[{"$nulls":4},{"$f":"Start_time","v":"06:00:00"}]
[null,"Başlangıç zamanı","06:00:00",null,{"$f":"IFERROR(IF($E3+Artış>EndTime,\"\",$E3+Artış),\"\")","v":"06:15:00"}]
[{"$nulls":4},"06:30:00"]
[null,"Aralık","15 DK",null,"06:45:00"]
[{"$nulls":4},"07:00:00"]
[null,"Bitiş zamanı","21:00:00",null,"07:15:00"]
[{"$nulls":4},"07:30:00"]
[null,"PROGRAMI GÖRÜNTÜLE",null,null,"07:45:00"]
[{"$nulls":4},"08:00:00"]
[null,"Günlük Program’ı Görüntülemek için seçin",null,null,"08:15:00"]
[{"$nulls":4},"08:30:00"]
[null,"Yeni bir etkinlik eklemek için seçin",null,null,"08:45:00"]
[{"$nulls":4},"09:00:00"]
[{"$nulls":4},"09:15:00"]
[{"$nulls":4},"09:30:00"]
[{"$nulls":4},"09:45:00"]
[{"$nulls":4},"10:00:00"]
[{"$nulls":4},"10:15:00"]
[{"$nulls":4},"10:30:00"]
[{"$nulls":4},"10:45:00"]
[{"$nulls":4},"11:00:00"]
[{"$nulls":4},"11:15:00"]
[{"$nulls":4},"11:30:00"]
[{"$nulls":4},"11:45:00"]
[{"$nulls":4},"12:00:00"]
[{"$nulls":4},"12:15:00"]
[{"$nulls":4},"12:30:00"]
[{"$nulls":4},"12:45:00"]
[{"$nulls":4},"13:00:00"]
[{"$nulls":4},"13:15:00"]
[{"$nulls":4},"13:30:00"]
[{"$nulls":4},"13:45:00"]
[{"$nulls":4},"14:00:00"]
[{"$nulls":4},{"$f":"IFERROR(IF($E35+Artış>EndTime,\"\",$E35+Artış),\"\")","v":"14:15:00"}]
[{"$nulls":4},"14:30:00"]
[{"$nulls":4},"14:45:00"]
[{"$nulls":4},"15:00:00"]
[{"$nulls":4},"15:15:00"]
[{"$nulls":4},"15:30:00"]
[{"$nulls":4},"15:45:00"]
[{"$nulls":4},"16:00:00"]
[{"$nulls":4},"16:15:00"]
[{"$nulls":4},"16:30:00"]
[{"$nulls":4},"16:45:00"]
[{"$nulls":4},"17:00:00"]
[{"$nulls":4},"17:15:00"]
[{"$nulls":4},"17:30:00"]
[{"$nulls":4},"17:45:00"]
[{"$nulls":4},"18:00:00"]
[{"$nulls":4},"18:15:00"]
[{"$nulls":4},"18:30:00"]
[{"$nulls":4},"18:45:00"]
[{"$nulls":4},"19:00:00"]
[{"$nulls":4},"19:15:00"]
[{"$nulls":4},"19:30:00"]
[{"$nulls":4},"19:45:00"]
[{"$nulls":4},"20:00:00"]
[{"$nulls":4},"20:15:00"]
[{"$nulls":4},"20:30:00"]
[{"$nulls":4},"20:45:00"]
[{"$nulls":4},"21:00:00"]
[{"$nulls":4},""]
[{"$nulls":4},""]
[{"$nulls":4},""]
[{"$nulls":4},""]
[{"$nulls":4},{"$f":"IFERROR(IF($E67+Artış>EndTime,\"\",$E67+Artış),\"\")","v":""}]
[{"$nulls":4},""]
[{"$nulls":4},""]
[{"$nulls":4},""]
[{"$nulls":4},""]
[{"$nulls":4},""]
[{"$nulls":4},""]
[{"$nulls":4},""]